bitfinex/quotes_BTCUSD_20250414
["timestamp","ask_amount","ask_price","bid_price","bid_amount"]
[1744663939373,0.23597,84757.0,84754.0,0.247775]
[1744663939723,0.235971,84756.0,84755.0,0.002]
[1744663939927,0.235971,84756.0,84754.0,0.249775]
[1744663940919,0.233971,84756.0,84754.0,0.249775]
[1744663941137,0.23597,84757.0,84754.0,0.247775]
[1744663941319,0.23597,84757.0,84754.0,0.249775]
[1744663941521,0.23597,84757.0,84755.0,0.002]
[1744663941866,0.23597,84757.0,84754.0,0.249775]
[1744663942068,0.23597,84757.0,84754.0,0.251775]
[1744663942563,0.23597,84757.0,84754.0,0.249775]
[1744663942902,0.235966,84758.0,84755.0,0.247772]
[1744663943099,0.05,84793.0,84755.0,0.011798]
[1744663943400,0.235962,84760.0,84757.0,0.011798]
[1744663943569,0.23596,84761.0,84758.0,0.235963]
[1744663943775,0.00883271,84759.0,84757.0,0.247766]
[1744663944627,0.00883271,84759.0,84757.0,0.248766]
[1744663944775,0.24479571,84759.0,84757.0,0.248766]
[1744663945453,0.24479571,84759.0,84757.0,0.013798]
[1744663945609,0.24479571,84759.0,84757.0,0.002]
[1744663945906,0.24479571,84759.0,84757.0,0.001]
[1744663946121,0.00883271,84759.0,84757.0,0.237967]
[1744663946308,0.24479571,84759.0,84757.0,0.237967]
[1744663946513,0.00883271,84759.0,84757.0,0.237967]
[1744663947123,0.24479671,84759.0,84757.0,0.002]
[1744663949068,0.00883271,84759.0,84757.0,0.002]
[1744663949980,0.00883271,84759.0,84757.0,0.237967]
[1744663950371,0.00883271,84759.0,84758.0,0.235965]
[1744663950777,0.235957,84762.0,84759.0,0.011798]
[1744663950778,0.235958,84761.0,84759.0,0.011798]
[1744663951303,0.23596,84760.0,84758.0,0.011798]
[1744663951458,0.23596,84760.0,84758.0,0.012798]
[1744663951630,0.235963,84759.0,84758.0,0.001]
[1744663952235,0.234963,84759.0,84758.0,0.001]
[1744663952449,0.235965,84758.0,84756.0,0.247769]
[1744663952654,0.234965,84758.0,84756.0,0.247769]
[1744663953285,0.233965,84758.0,84756.0,0.247769]
[1744663953519,0.23596,84760.0,84757.0,0.011798]
[1744663954116,0.235963,84759.0,84758.0,0.001]
[1744663954619,0.235963,84759.0,84757.0,0.011798]
[1744663954854,0.235965,84758.0,84757.0,0.001]
[1744663955170,0.235965,84758.0,84756.0,0.001]
[1744663955171,0.235968,84757.0,84756.0,0.001]
[1744663955600,0.235965,84758.0,84755.0,0.247771]
[1744663955776,0.235965,84758.0,84757.0,0.001]
[1744663956218,0.235965,84758.0,84755.0,0.247771]
[1744663956422,0.235965,84758.0,84756.0,0.001]
[1744663956729,0.235965,84758.0,84755.0,0.247771]
[1744663956934,0.235965,84758.0,84757.0,0.001]
[1744663957296,0.235965,84758.0,84756.0,0.001]
[1744663957611,0.235965,84758.0,84756.0,0.002]
[1744663957781,0.235965,84758.0,84756.0,0.001]
[1744663957978,0.235965,84758.0,84757.0,0.001]
[1744663958604,0.235965,84758.0,84756.0,0.001]
[1744663959167,0.235965,84758.0,84757.0,0.001]
[1744663959582,0.235965,84758.0,84756.0,0.001]
[1744663959786,0.235965,84758.0,84756.0,0.002]
[1744663960011,0.235963,84759.0,84756.0,0.23797]
[1744663960193,0.235963,84759.0,84756.0,0.012798]
[1744663960352,0.235963,84759.0,84757.0,0.001]
[1744663960552,0.235966,84758.0,84757.0,0.001]
[1744663960776,0.235966,84758.0,84755.0,0.247771]
[1744663960974,0.235963,84759.0,84757.0,0.012798]
[1744663961177,0.235955,84762.0,84759.0,0.011798]
[1744663961499,0.235955,84762.0,84760.0,0.247758]
[1744663961697,0.235955,84762.0,84760.0,0.011798]
[1744663962056,0.235962,84760.0,84757.0,0.247764]
[1744663962900,0.235964,84759.0,84757.0,0.247764]
[1744663963103,0.235964,84759.0,84757.0,0.248764]
[1744663963342,0.235964,84759.0,84757.0,0.012798]
[1744663963744,0.00884543,84758.0,84757.0,0.012798]
[1744663963943,0.00884543,84758.0,84757.0,0.011798]
[1744663964340,0.00884543,84758.0,84757.0,0.012798]
[1744663964716,0.00884543,84758.0,84757.0,0.248766]
[1744663964934,0.00884543,84758.0,84757.0,0.247766]
[1744663965135,0.00884543,84758.0,84757.0,0.249766]
[1744663965632,0.235957,84761.0,84759.0,0.011798]
[1744663965943,0.235957,84761.0,84758.0,0.247761]
[1744663966320,0.235961,84760.0,84758.0,0.011798]
[1744663966863,0.235961,84760.0,84759.0,0.001]
[1744663967305,0.235961,84760.0,84758.0,0.011798]
[1744663967697,0.235961,84760.0,84758.0,0.012798]
[1744663968767,0.23596,84760.0,84758.0,0.248763]
[1744663968965,0.235957,84761.0,84758.0,0.012798]
[1744663969287,0.235957,84761.0,84758.0,0.001]
[1744663969484,0.235957,84761.0,84758.0,0.012798]
[1744663969688,0.235957,84761.0,84758.0,0.247762]
[1744663970030,0.235957,84761.0,84758.0,0.248762]
[1744663972620,0.23596,84760.0,84758.0,0.248762]
[1744663973476,0.23596,84760.0,84758.0,0.247762]
[1744663973683,0.235957,84761.0,84758.0,0.247762]
[1744663973884,0.235957,84761.0,84758.0,0.248762]
[1744663974741,0.235957,84761.0,84758.0,0.247762]
[1744663976188,0.235957,84761.0,84758.0,0.248762]
[1744663976597,0.235962,84760.0,84758.0,0.012798]
[1744663977433,0.235962,84760.0,84758.0,0.001]
[1744663977592,0.235962,84760.0,84756.0,0.011798]
[1744663977932,0.238962,84760.0,84756.0,0.011798]
[1744663978088,0.235968,84758.0,84756.0,0.011798]
[1744663978482,0.235968,84757.0,84755.0,0.247771]
[1744663978680,0.00885236,84756.0,84755.0,0.247771]
[1744663980893,0.00885236,84756.0,84755.0,0.011798]
[1744663981075,0.24482336,84756.0,84753.0,0.012257]
[1744663981289,0.24682336,84756.0,84753.0,0.012257]
[1744663981694,0.24682336,84756.0,84754.0,0.235976]
[1744663981827,0.24482336,84756.0,84754.0,0.235976]
[1744663982223,0.24582336,84756.0,84754.0,0.235976]
[1744663982422,0.24482336,84756.0,84754.0,0.235976]
[1744663982990,0.00985236,84756.0,84755.0,0.235974]
[1744663983142,0.00985236,84756.0,84755.0,0.35681554]
[1744663983359,0.001,84756.0,84755.0,0.40291554]
[1744663984153,0.150195,84775.0,84767.0,0.011797]
[1744663984154,0.235932,84770.0,84767.0,0.011797]
[1744663984352,0.235935,84769.0,84765.0,0.011797]
[1744663984587,0.24484382,84769.0,84767.0,0.23594]
[1744663984795,0.00890882,84769.0,84767.0,0.23594]
[1744663985583,0.01190882,84769.0,84767.0,0.23594]
[1744663985806,0.00890882,84769.0,84767.0,0.23594]
[1744663986032,0.01190882,84769.0,84767.0,0.23594]
[1744663986670,0.24784482,84769.0,84767.0,0.23594]
[1744663987197,0.24884482,84769.0,84767.0,0.23594]
[1744663987628,0.24884482,84769.0,84766.0,0.24774]
[1744663988073,0.01290882,84769.0,84768.0,0.235938]
[1744663988697,0.00990882,84769.0,84768.0,0.235938]
[1744663988898,0.00890882,84769.0,84768.0,0.235938]
[1744663989257,0.004,84769.0,84768.0,0.235938]
[1744663989435,0.01290736,84769.0,84768.0,0.235938]
[1744663989635,0.003,84769.0,84768.0,0.235938]
[1744663989807,0.01191028,84769.0,84768.0,0.235938]
[1744663990015,0.005,84769.0,84768.0,0.235938]
[1744663990375,0.005,84769.0,84767.0,0.235938]
[1744663990580,0.01091028,84769.0,84767.0,0.235938]
[1744663990743,0.01391028,84769.0,84767.0,0.235938]
[1744663991669,0.235938,84768.0,84765.0,0.247742]
[1744663991876,0.235941,84767.0,84765.0,0.011797]
[1744663992032,0.24484762,84767.0,84765.0,0.011797]
[1744663993486,0.24584762,84767.0,84765.0,0.011797]
[1744663993671,0.24584762,84767.0,84765.0,0.247742]
[1744663993872,0.24884762,84767.0,84765.0,0.247742]
[1744663994487,0.24884762,84767.0,84765.0,0.011797]
[1744663995291,0.24884762,84767.0,84764.0,0.247745]
[1744663995488,0.235945,84766.0,84763.0,0.247748]
[1744663995692,0.00890297,84765.0,84763.0,0.247748]
[1744663996537,0.24485097,84765.0,84762.0,0.011797]
[1744663996739,0.24485097,84765.0,84741.0,0.3076572]
[1744663996740,0.235973,84756.0,84752.0,0.011799]
[1744663996946,0.235974,84755.0,84754.0,0.46084154]
[1744663997141,0.235977,84754.0,84750.0,0.011799]
[1744663997302,0.24485869,84755.0,84752.0,0.247781]
[1744663997479,0.00888469,84755.0,84754.0,0.235977]
[1744663997856,0.235959,84761.0,84758.0,0.011798]
[1744663998063,0.002,84765.0,84764.0,0.575949]
[1744663998196,0.001,84765.0,84764.0,0.69679054]
[1744663998635,0.235904,84780.0,84778.0,0.247704]
[1744663998812,0.235902,84781.0,84778.0,0.247704]
[1744663999037,0.295293,84782.0,84778.0,0.247704]
[1744663999038,0.0464,84785.0,84782.0,0.011794]
[1744663999233,0.1384,84786.0,84785.0,0.23589]
[1744663999437,0.235885,84787.0,84784.0,0.247686]
[1744663999652,0.23589,84785.0,84782.0,0.011794]
[1744663999827,0.235896,84783.0,84781.0,0.235901]
[1744664000026,0.235895,84784.0,84781.0,0.235901]
[1744664000255,0.23603282,84784.0,84781.0,0.247696]
[1744664000422,0.00013782,84784.0,84782.0,0.235897]
[1744664001213,0.00313782,84784.0,84783.0,0.12084154]
[1744664001415,0.00313782,84784.0,84783.0,0.46320022]
[1744664001416,8.2e-07,84784.0,84783.0,0.46320022]
[1744664001588,8.2e-07,84784.0,84783.0,0.46084154]
[1744664001734,0.00300082,84784.0,84783.0,0.46084154]
[1744664002360,0.00500082,84784.0,84783.0,0.46084154]
[1744664002760,0.00300082,84784.0,84783.0,0.46084154]
[1744664002964,0.0004224,84795.0,84793.0,0.235868]
[1744664004663,0.0014224,84795.0,84793.0,0.235868]
[1744664005693,0.00755979,84794.0,84793.0,0.235868]
[1744664007124,0.0014224,84795.0,84793.0,0.235868]
[1744664007515,0.00757206,84794.0,84793.0,0.235868]
[1744664008123,0.00857206,84794.0,84793.0,0.235868]
[1744664010019,0.001,84794.0,84793.0,0.235868]
[1744664012663,0.001,84794.0,84793.0,0.284368]
[1744664012832,0.001,84794.0,84793.0,0.332268]
[1744664013576,0.001,84794.0,84793.0,0.45310954]
[1744664013989,0.0004224,84795.0,84794.0,0.235865]
[1744664014162,0.0004224,84795.0,84794.0,0.35670654]
[1744664014362,0.0004224,84795.0,84794.0,0.36687922]
[1744664017211,0.0004224,84795.0,84794.0,0.35670654]
[1744664024661,0.0004224,84795.0,84794.0,0.36689391]
[1744664041017,0.2362844,84795.0,84794.0,0.01018737]
[1744664041259,0.0004224,84795.0,84794.0,0.24605237]
[1744664041489,0.00811915,84795.0,84794.0,0.24605237]
[1744664041711,0.0004224,84795.0,84794.0,0.24605237]
[1744664041909,0.00811915,84795.0,84794.0,0.24605237]
[1744664042123,0.0004224,84795.0,84794.0,0.24605237]
[1744664042337,0.00811915,84795.0,84794.0,0.24605237]
[1744664042765,0.00811915,84795.0,84794.0,0.235865]
[1744664045614,0.0004224,84795.0,84794.0,0.235865]
[1744664047132,0.00809603,84795.0,84794.0,0.235865]
[1744664048086,0.0004224,84795.0,84794.0,0.235865]
[1744664050660,0.0004224,84795.0,84794.0,0.24609027]
[1744664051428,0.0004224,84795.0,84794.0,0.235865]
[1744664051768,0.0092013,84795.0,84794.0,0.235865]
[1744664051990,0.0004224,84795.0,84794.0,0.235865]
[1744664054520,0.0004224,84795.0,84794.0,0.35670654]
[1744664055621,0.0004224,84795.0,84794.0,0.69670654]
[1744664055826,4e-07,84795.0,84794.0,0.80354739]
[1744664056024,0.002,84799.0,84794.0,0.80354739]
[1744664056025,4e-07,84803.0,84802.0,0.575843]
[1744664056223,4e-07,84803.0,84802.0,0.69668454]
[1744664058026,0.0010004,84803.0,84802.0,0.69668454]
[1744664071550,0.0010004,84803.0,84802.0,0.74218454]
[1744664075509,0.0010004,84803.0,84802.0,0.74218454]
[1744664080168,0.05,86250.0,84802.0,0.74218454]
[1744664080394,0.01179,84811.0,84805.0,0.011791]
[1744664080596,0.235826,84809.0,84806.0,0.247621]
[1744664080723,0.0473,84808.0,84806.0,0.247621]
[1744664080914,0.0080867,84807.0,84806.0,0.247621]
[1744664082226,0.0100867,84807.0,84806.0,0.247621]
[1744664082450,0.002,84807.0,84806.0,0.247621]
[1744664082648,0.0100867,84807.0,84806.0,0.247621]
[1744664082852,0.002,84807.0,84806.0,0.247621]
[1744664083064,0.01007026,84807.0,84806.0,0.247621]
[1744664083265,0.002,84807.0,84806.0,0.247621]
[1744664083467,0.01007026,84807.0,84806.0,0.247621]
[1744664083671,0.002,84807.0,84806.0,0.247621]
[1744664083861,0.002,84807.0,84806.0,0.36846254]
[1744664100427,0.002,84807.0,84806.0,0.247621]
[1744664102275,0.01008314,84807.0,84806.0,0.247621]
[1744664102434,0.002,84807.0,84806.0,0.247621]
[1744664102616,0.01008314,84807.0,84806.0,0.247621]
[1744664102819,0.002,84807.0,84806.0,0.247621]
[1744664104473,0.01008314,84807.0,84806.0,0.247621]
[1744664104647,0.002,84807.0,84806.0,0.247621]
[1744664104839,0.01008314,84807.0,84806.0,0.247621]
[1744664105062,0.002,84807.0,84806.0,0.247621]
[1744664105617,0.01008314,84807.0,84806.0,0.247621]
[1744664105751,0.002,84807.0,84806.0,0.247621]
[1744664108186,0.01004294,84807.0,84806.0,0.247621]
[1744664108386,0.002,84807.0,84806.0,0.247621]
[1744664109333,0.01004294,84807.0,84806.0,0.247621]
[1744664109535,0.002,84807.0,84806.0,0.247621]
[1744664109737,0.002,84807.0,84804.0,0.235837]
[1744664109738,0.011792,84800.0,84796.0,0.24765]
[1744664109911,0.0482,84800.0,84799.0,0.235851]
[1744664110275,0.05623016,84800.0,84798.0,0.247644]
[1744664110426,0.05623016,84800.0,84799.0,0.235851]
[1744664110936,0.05623016,84800.0,84798.0,0.235854]
[1744664112547,0.05623016,84800.0,84799.0,0.235851]
[1744664112958,0.05623016,84800.0,84798.0,0.235854]
[1744664113149,0.05623016,84800.0,84799.0,0.235851]
[1744664115547,0.05623016,84800.0,84798.0,0.235854]
[1744664115996,0.05623016,84800.0,84799.0,0.235851]
[1744664117016,0.00803016,84800.0,84799.0,0.235851]
[1744664117430,0.0489,84811.0,84808.0,0.247617]
[1744664117600,0.04803777,84813.0,84808.0,0.247617]
[1744664117601,0.00013777,84813.0,84812.0,0.575815]
[1744664119704,0.00113777,84813.0,84812.0,0.575815]
[1744664125748,0.00113777,84813.0,84812.0,0.235815]
[1744664126589,0.0078897,84813.0,84812.0,0.235815]
[1744664127348,0.0078897,84813.0,84811.0,0.235816]
[1744664127548,0.0078897,84813.0,84812.0,0.235815]
[1744664128171,0.0068897,84813.0,84812.0,0.235815]
[1744664128716,0.0078897,84813.0,84812.0,0.235815]
[1744664129075,0.0068897,84813.0,84812.0,0.235815]
[1744664129416,0.0078897,84813.0,84812.0,0.235815]
[1744664131787,0.00113777,84813.0,84812.0,0.235815]
[1744664132310,0.00792047,84813.0,84812.0,0.235815]
[1744664132505,0.00113777,84813.0,84812.0,0.235815]
[1744664132714,0.00792047,84813.0,84812.0,0.235815]
[1744664132976,0.00113777,84813.0,84812.0,0.235815]
[1744664133126,0.00792047,84813.0,84812.0,0.235815]
[1744664133331,0.00113777,84813.0,84812.0,0.235815]
[1744664133533,0.00792047,84813.0,84812.0,0.235815]
[1744664133714,0.00113777,84813.0,84812.0,0.235815]
[1744664134355,0.00792047,84813.0,84812.0,0.235815]
[1744664134585,0.00113777,84813.0,84812.0,0.235815]
[1744664134715,0.00792047,84813.0,84812.0,0.235815]
[1744664134915,0.00113777,84813.0,84812.0,0.235815]
[1744664135117,0.00792047,84813.0,84812.0,0.235815]
[1744664136166,0.00792047,84813.0,84800.0,0.34]
[1744664136494,0.00792047,84813.0,84778.0,0.07477637]
[1744664136495,0.011794,84788.0,84778.0,0.07477637]
[1744664136672,0.24765,84797.0,84790.0,0.011793]
[1744664136881,0.235864,84795.0,84790.0,0.011793]
[1744664137093,0.235864,84795.0,84791.0,0.011793]
[1744664137252,0.235871,84793.0,84790.0,0.011793]
[1744664137441,0.235871,84792.0,84790.0,0.011793]
[1744664137636,0.00672893,84792.0,84787.0,0.011794]
[1744664137836,0.235874,84791.0,84788.0,0.247673]
[1744664138037,0.00669455,84791.0,84789.0,0.011793]
[1744664138412,0.001,84793.0,84789.0,0.011793]
[1744664138574,0.001,84793.0,84791.0,0.235873]
[1744664138897,0.235854,84800.0,84795.0,0.235861]
[1744664139195,0.283946,84801.0,84800.0,0.001]
[1744664139412,0.011792,84800.0,84795.0,0.247654]
[1744664139635,0.235857,84797.0,84795.0,0.011793]
[1744664139773,0.059892,84801.0,84796.0,0.247653]
[1744664139998,0.011792,84799.0,84792.0,0.011793]
[1744664140312,0.011792,84799.0,84789.0,0.247671]
[1744664140313,0.235869,84793.0,84789.0,0.247671]
[1744664140632,0.001,84793.0,84791.0,0.247666]
[1744664141223,0.235868,84794.0,84791.0,0.247666]
[1744664141422,0.236869,84793.0,84791.0,0.011793]
[1744664141966,0.235869,84793.0,84791.0,0.011793]
[1744664142166,0.236869,84793.0,84791.0,0.011793]
[1744664142530,0.238869,84793.0,84791.0,0.011793]
[1744664142875,0.236869,84793.0,84791.0,0.011793]
[1744664143093,0.238869,84793.0,84791.0,0.011793]
[1744664143880,0.00658648,84792.0,84791.0,0.011793]
[1744664145051,0.00758648,84792.0,84791.0,0.011793]
[1744664145681,0.00958648,84792.0,84791.0,0.011793]
[1744664146831,0.00958648,84792.0,84791.0,0.247667]
[1744664147468,0.00958648,84792.0,84791.0,0.011793]
[1744664150654,0.24545748,84792.0,84790.0,0.011793]
[1744664150846,0.24545748,84792.0,84789.0,0.247672]
[1744664151658,0.24445748,84792.0,84789.0,0.247672]
[1744664151860,0.24345748,84792.0,84789.0,0.247672]
[1744664152244,0.24545748,84792.0,84789.0,0.247672]
[1744664152685,0.24545748,84792.0,84790.0,0.235875]
[1744664152883,0.24395748,84792.0,84790.0,0.235875]
[1744664153084,0.24295748,84792.0,84790.0,0.235875]
[1744664154138,0.24395748,84792.0,84790.0,0.235875]
[1744664154340,0.24095748,84792.0,84790.0,0.235875]
[1744664154638,0.24395748,84792.0,84790.0,0.235875]
[1744664155604,0.235876,84790.0,84788.0,0.247675]
[1744664155806,0.00632626,84789.0,84788.0,0.247675]
[1744664156146,0.011793,84791.0,84787.0,0.011794]
[1744664156471,0.011793,84791.0,84785.0,0.011794]
[1744664156472,0.011793,84790.0,84785.0,0.011794]
[1744664156736,0.235882,84788.0,84786.0,0.247679]
[1744664156907,0.00527189,84789.0,84787.0,0.011794]
[1744664157285,0.235872,84792.0,84787.0,0.011794]
[1744664157455,0.00526702,84788.0,84787.0,0.011794]
[1744664157654,0.235872,84792.0,84787.0,0.011794]
[1744664157858,0.00526702,84788.0,84787.0,0.247679]
[1744664158088,0.23587,84793.0,84789.0,0.011793]
[1744664158564,0.23587,84793.0,84788.0,0.247675]
[1744664158990,0.23587,84793.0,84789.0,0.011793]
[1744664159467,0.23587,84793.0,84788.0,0.247675]
[1744664159657,0.23587,84793.0,84789.0,0.011793]
[1744664159865,0.235874,84791.0,84787.0,0.247679]
[1744664160254,0.235874,84791.0,84787.0,0.011794]
[1744664160795,0.011793,84789.0,84782.0,0.235898]
[1744664160961,0.247677,84789.0,84783.0,0.235894]
[1744664161162,0.00526702,84788.0,84787.0,0.235885]
[1744664161521,0.235861,84796.0,84791.0,0.247666]
[1744664161719,0.235861,84796.0,84789.0,0.247669]
[1744664161720,0.011793,84795.0,84790.0,0.011793]
[1744664161974,0.235865,84794.0,84790.0,0.011793]
[1744664162161,0.235865,84794.0,84790.0,0.247669]
[1744664162481,0.00527616,84793.0,84790.0,0.011793]
[1744664162893,0.00527616,84793.0,84790.0,0.247669]
[1744664164204,0.00527616,84793.0,84790.0,0.011793]
[1744664164397,0.24114416,84793.0,84789.0,0.247669]
[1744664164609,0.00527616,84793.0,84790.0,0.247669]
[1744664165905,0.00627616,84793.0,84790.0,0.247669]
[1744664166420,0.00627616,84793.0,84790.0,0.011793]
[1744664166632,0.02209041,84792.0,84789.0,0.235878]
[1744664166926,0.0052725,84791.0,84789.0,0.235878]
[1744664167582,0.001,84793.0,84790.0,0.247669]
[1744664167783,0.02208989,84792.0,84790.0,0.247669]
[1744664168131,0.02208989,84791.0,84790.0,0.247669]
[1744664169475,0.02308989,84791.0,84789.0,0.235878]
[1744664169721,0.001,84791.0,84789.0,0.235879]
[1744664170303,0.235868,84793.0,84790.0,0.011793]
[1744664170922,0.235868,84793.0,84786.0,0.247681]
[1744664170923,0.235878,84790.0,84785.0,0.247684]
[1744664171079,0.23588,84789.0,84785.0,0.247684]
[1744664171246,0.235883,84788.0,84784.0,0.247682]
[1744664171450,0.235879,84789.0,84785.0,0.247683]
[1744664171727,0.235879,84789.0,84785.0,0.011794]
[1744664171938,0.011794,84785.0,84778.0,0.2367512]
[1744664172108,0.235897,84783.0,84780.0,0.011795]
[1744664172312,0.235907,84779.0,84778.0,0.0008442]
[1744664173342,0.235904,84780.0,84778.0,0.0013032]
[1744664173525,0.235903,84781.0,84778.0,0.0013032]
[1744664173931,0.0052435,84780.0,84778.0,0.0013032]
[1744664174131,0.235907,84779.0,84778.0,0.0033032]
[1744664174337,0.24114867,84779.0,84778.0,0.0013032]
[1744664175521,0.02731818,84779.0,84778.0,0.0013032]
[1744664175723,0.00524167,84779.0,84778.0,0.2372132]
[1744664175843,0.235901,84782.0,84778.0,0.2372132]
[1744664176198,0.02727419,84781.0,84779.0,0.2477]
[1744664176402,0.002,84779.0,84778.0,0.0130982]
[1744664176762,0.00720234,84779.0,84778.0,0.0013032]
[1744664177150,0.24310934,84779.0,84778.0,0.0013032]
[1744664177371,0.29170934,84779.0,84778.0,0.0013032]
[1744664177619,0.28970934,84779.0,84778.0,0.0013032]
[1744664178706,0.29170934,84779.0,84778.0,0.0013032]
[1744664179039,0.30057269,84779.0,84778.0,0.0013032]
[1744664182542,0.29537035,84779.0,84778.0,0.0013032]
[1744664185444,0.43825639,84779.0,84778.0,0.0013032]
[1744664186389,0.48435639,84779.0,84778.0,0.0013032]
[1744664186543,0.48235639,84779.0,84778.0,0.0013032]
[1744664186985,0.46031189,84779.0,84778.0,0.0013032]
[1744664187162,0.46331189,84779.0,84778.0,0.0013032]
[1744664187690,0.46631189,84779.0,84778.0,0.0013032]
[1744664187869,0.46331189,84779.0,84778.0,0.0013032]
[1744664188083,0.46631189,84779.0,84778.0,0.0013032]
[1744664196612,0.59041189,84779.0,84778.0,0.0013032]
[1744664196754,0.46631189,84779.0,84778.0,0.0013032]
[1744664204717,0.37161189,84779.0,84778.0,0.0013032]
[1744664206178,0.01486335,84779.0,84778.0,0.0013032]
[1744664206600,0.14408,84779.0,84778.0,0.2372132]
[1744664207172,0.14108,84779.0,84778.0,0.2372132]
[1744664207611,0.13808,84779.0,84778.0,0.2372132]
[1744664207980,0.14108,84779.0,84778.0,0.2372132]
[1744664208552,0.14308,84779.0,84778.0,0.2372132]
[1744664214473,0.378987,84779.0,84778.0,0.0013032]
[1744664214683,0.14308,84779.0,84778.0,0.2372132]
[1744664215619,0.14308,84779.0,84778.0,0.0013032]
[1744664215781,0.378987,84779.0,84778.0,0.0013032]
[1744664216527,0.14308,84779.0,84778.0,0.2372132]
[1744664216738,0.378987,84779.0,84778.0,0.0013032]
[1744664220117,0.14308,84779.0,84778.0,0.0013032]
[1744664220346,0.378987,84779.0,84778.0,0.0013032]
[1744664220548,0.14308,84779.0,84778.0,0.0013032]
[1744664220878,0.378987,84779.0,84778.0,0.0013032]
[1744664222130,0.14308,84779.0,84778.0,0.0013032]
[1744664222566,0.005,84779.0,84778.0,0.6736132]
[1744664223551,0.002,84779.0,84778.0,0.6736132]
[1744664224291,0.13808,84790.0,84778.0,0.6736132]
[1744664224292,0.13808,84790.0,84789.0,0.235879]
[1744664224562,0.235828,84808.0,84793.0,0.235868]
[1744664224758,0.4109,84801.0,84800.0,0.235849]
[1744664224905,1.10356,84809.0,84805.0,0.235834]
[1744664225113,0.138,84808.0,84805.0,0.247625]
[1744664225337,0.235832,84806.0,84799.0,0.011792]
[1744664225591,0.235841,84803.0,84799.0,0.011792]
[1744664226348,0.235844,84802.0,84799.0,0.247643]
[1744664226552,0.235846,84801.0,84798.0,0.247646]
[1744664226748,0.235849,84800.0,84797.0,0.235856]
[1744664227333,0.235854,84798.0,84795.0,0.235862]
[1744664227652,0.247646,84798.0,84795.0,0.235862]
[1744664227856,0.247646,84798.0,84795.0,0.247655]
[1744664228423,0.001,84798.0,84797.0,0.235857]
[1744664228649,0.002,84798.0,84797.0,0.235857]
[1744664229265,0.001,84798.0,84797.0,0.235857]
[1744664229897,0.001,84798.0,84797.0,0.247649]
[1744664230283,0.235851,84799.0,84797.0,0.247649]
[1744664230578,0.001,84798.0,84797.0,0.247649]
[1744664231191,0.002,84798.0,84797.0,0.247649]
[1744664234639,0.002,84798.0,84793.0,0.24766]
[1744664234640,0.013792,84798.0,84793.0,0.011793]
[1744664234792,0.235865,84795.0,84792.0,0.011793]
[1744664235054,0.235865,84795.0,84787.0,0.011794]
[1744664235055,0.011793,84792.0,84788.0,0.011794]
[1744664235226,0.011793,84792.0,84790.0,0.235876]
[1744664235406,0.00662373,84791.0,84790.0,0.235876]
[1744664235625,0.011793,84794.0,84791.0,0.247664]
[1744664235794,0.011793,84794.0,84787.0,0.011794]
[1744664235795,0.235879,84790.0,84787.0,0.011794]
[1744664236318,0.011793,84791.0,84788.0,0.235881]
[1744664236319,0.00660204,84789.0,84788.0,0.235881]
[1744664236518,0.247667,84791.0,84785.0,0.247682]
[1744664236719,0.235884,84788.0,84786.0,0.235887]
[1744664236923,0.011794,84786.0,84782.0,0.247687]
[1744664237138,0.011794,84786.0,84778.0,0.0126392]
[1744664237139,0.011795,84781.0,84778.0,0.0008442]
[1744664237323,0.235904,84782.0,84779.0,0.235906]
[1744664237589,0.011794,84783.0,84779.0,0.247701]
[1744664237735,0.24769,84783.0,84780.0,0.247699]
[1744664238145,0.002,84781.0,84779.0,0.011795]
[1744664238728,0.002,84781.0,84780.0,0.235904]
[1744664238935,1.12421581,84809.0,84792.0,0.235871]
[1744664239357,0.02201604,84808.0,84792.0,0.235871]
[1744664239568,0.25784404,84808.0,84792.0,0.235871]
[1744664239792,0.011791,84807.0,84792.0,0.235871]
[1744664240033,0.011791,84804.0,84792.0,0.235871]
[1744664240211,0.011792,84801.0,84792.0,0.235871]
[1744664240513,0.247638,84801.0,84792.0,0.235871]
[1744664240864,0.14396,84793.0,84792.0,0.235871]
[1744664250487,0.14396,84793.0,84787.0,0.247677]
[1744664250488,0.235873,84792.0,84789.0,0.235879]
[1744664250844,0.235873,84792.0,84790.0,0.235875]
[1744664251054,0.235874,84791.0,84789.0,0.247672]
[1744664251223,0.235874,84791.0,84788.0,0.247676]
[1744664251422,0.235874,84791.0,84789.0,0.235878]
[1744664252702,0.252666,84792.0,84789.0,0.247671]
[1744664252825,0.250666,84792.0,84789.0,0.247671]
[1744664253225,0.002,84791.0,84789.0,0.247671]
[1744664253425,0.005,84791.0,84789.0,0.247671]
[1744664253781,0.002,84791.0,84789.0,0.247671]
[1744664254127,0.250666,84792.0,84789.0,0.247671]
[1744664254325,0.235888,84786.0,84779.0,0.247701]
[1744664254566,0.250667,84791.0,84788.0,0.23588]
[1744664254956,0.02206233,84790.0,84788.0,0.23588]
[1744664255380,0.250667,84791.0,84788.0,0.23588]
[1744664255967,0.250667,84791.0,84788.0,0.235881]
[1744664255968,0.02206413,84790.0,84788.0,0.235881]
[1744664256424,0.250667,84791.0,84788.0,0.235881]
[1744664256830,0.247667,84791.0,84788.0,0.235881]
[1744664257087,0.249667,84791.0,84788.0,0.235881]
[1744664257264,0.249667,84791.0,84788.0,0.247675]
[1744664257551,0.02206681,84790.0,84788.0,0.247675]
[1744664258215,0.251667,84791.0,84788.0,0.247675]
[1744664259029,0.0220681,84790.0,84788.0,0.247675]
[1744664259341,0.237874,84791.0,84789.0,0.235879]
[1744664259713,0.002,84790.0,84789.0,0.235879]
[1744664260184,0.237874,84791.0,84789.0,0.235879]
[1744664260415,0.02206854,84790.0,84789.0,0.235879]
[1744664260754,0.02406854,84790.0,84789.0,0.235879]
[1744664260953,0.02206854,84790.0,84789.0,0.235879]